Workbook

Sheet Financial Bid
C1: MAHA MUMBAI METRO OPERATION CORPORATION LIMITED (A Government of Maharashtra PSU)
C2: NaMTTRI Building, Adjoining New MMRDA Building, Bandra Kurla Complex, Bandra East, Mumbai 400051
C3: eTender No. MMRDA/MMMOCL/0002526: RFP for Licensing of Advertising Rights at Mumbai Metro Line 2A and 7 Stations & Trains
B5: FINANCIAL BID
B6: Bidding Entity | C6: < ABC Pvt Ltd >
D7: Minimum Guarantee for the prescribed year in INR
B8: Package No. | C8: Package Description | D8: in figures Rs. | E8: in words
B9: 1 | C9: 17 stations of Line 2A | E9: =SpellIndian(D9) -> No Rupees Only
B10: 2 | C10: 13 stations of Line 7 | E10: =SpellIndian(D10) -> No Rupees Only
B11: 3 | C11: 44 trains | E11: =SpellIndian(D11) -> No Rupees Only
B12: 1 + 2 + 3 | C12: All of the above (if bidding for this option, breakup below is mandatory) | E12: =SpellIndian(D12) -> No Rupees Only
C13: Line 2A stations % | E13: <<< breakup is only for pro-rata adjustment due to phase-wise addition of stations and trains later; minimum value for any individual component should not be lower than 20%
C14: Line 7 stations %
C15: Trains % | D15: =IF(1-SUM(D13:D14)=1,"",(1-SUM(D13:D14))) -> 
B17: Bid Submission Date | C17: 2021-08-20 | D17: In date format given
B18: City | C18: City | D18: Enter city in which your corporate office is located
B19: Name of Authorized Signatory | C19: Name
B20: Designation of Authorized Signatory | C20: Designation
B22: Legend:
B23: Input by Bidder
B25: Note:
B26: Bidders may bid for 1 or more or all packages; for e.g. a bidder may bid 100 for package 1, 100 for package 2, 100 for package 3, and 350 for package 4
B27: For 'All of the above' option, please give breakup as well which will be required for pro-rata adjustment of MG for phase-wise commissioning of stations and additions of trains later

Sheet Space Pivot (hidden)
A1: MASTERDATA PIVOT
A2: Sum of Total Area | B2: Column Labels
A3: Row Labels | B3: Concourse | C3: Concourse 1 | D3: Ground | E3: Platform | F3: In-Train | G3: Grand Total
A4: Aarey | B4: 740.565 | D4: 109.63 | E4: 348.245 | G4: 1198.44
A5: Akurli | B5: 629.67 | D5: 89.35 | E5: 364.07 | G5: 1083.09
A6: Andheri West | B6: 577.035 | C6: 458.805 | D6: 86 | E6: 340.25 | G6: 1462.09
A7: Borivali West | B7: 548.575 | D7: 57.6 | E7: 329.04 | G7: 935.215
A8: Dahanukarwadi | B8: 550.736 | D8: 33 | E8: 328.52 | G8: 912.256
A9: Dahisar East | B9: 687.32 | D9: 31.05 | E9: 339.756 | G9: 1058.126
A10: Devipada | B10: 525.545 | D10: 197.82 | E10: 346.56 | G10: 1069.925
A11: Dindoshi | B11: 650.09 | D11: 107.6 | E11: 348.335 | G11: 1106.025
A12: Eksar | B12: 566.432 | D12: 57.6 | E12: 340.306 | G12: 964.338
A13: Goregaon East | B13: 501.165 | D13: 89.35 | E13: 352.04 | G13: 942.555
A14: Goregaon West | B14: 540.202 | D14: 57.6 | E14: 340.26 | G14: 938.062
A15: Gundavali | B15: 820.0546 | D15: 31 | E15: 349.56 | G15: 1200.6146
A16: In-Train | F16: 11009.856 | G16: 11009.856
A17: Jogeshwari East | B17: 745.365 | D17: 58 | E17: 347.025 | G17: 1150.39
A18: Kandarpada | B18: 560.257 | D18: 57.6 | E18: 329.056 | G18: 946.913
A19: Kandivali West | B19: 576.553 | D19: 57.6 | E19: 329.04 | G19: 963.193
A20: Kurar | B20: 523.42 | D20: 224 | E20: 348.215 | G20: 1095.635
A21: Lower Malad | B21: 536.587 | D21: 57.6 | E21: 340.26 | G21: 934.447
A22: Lower Oshiwara | B22: 533.245 | D22: 57.6 | E22: 340.26 | G22: 931.105
A23: Magathane | B23: 548.76 | D23: 92.2 | E23: 347.36 | G23: 988.32
A24: Malad West | B24: 553.348 | D24: 57.6 | E24: 340.26 | G24: 951.208
A25: Mandapeshwar | B25: 563.445 | D25: 57.6 | E25: 329.056 | G25: 950.101
A26: Mogra | B26: 564.13 | D26: 116 | E26: 352.04 | G26: 1032.17
A27: Ovaripada | B27: 652.495 | D27: 58 | E27: 347.73 | G27: 1058.225
A28: Pahadi Eksar | B28: 568.567 | D28: 57.6 | E28: 340.26 | G28: 966.427
A29: Pahadi Goregaon | B29: 551.845 | D29: 57.6 | E29: 329.04 | G29: 938.485
A30: Poisar | B30: 603.635 | D30: 57.8 | E30: 347.84 | G30: 1009.275
A31: Rashtriya Udyaan | B31: 548.595 | D31: 57.6 | E31: 347.63 | G31: 953.825
A32: Upper Dahisar | B32: 559.96 | D32: 57.6 | E32: 329.056 | G32: 946.616
A33: Valnai | B33: 500.518 | D33: 57.6 | E33: 340.26 | G33: 898.378
A34: Oshiwara | B34: 558.94 | D34: 57.6 | E34: 329.04 | G34: 945.58
A35: Grand Total | B35: 17587.0546 | C35: 458.805 | D35: 2244.8 | E35: 10240.37 | F35: 11009.856 | G35: 41540.8856

Sheet Space Summary
A1: INVENTORY SUMMARY
A2: SN | B2: Station Name | C2: Line | D2: Phase | E2: Concourse | F2: Platform | G2: Ground | H2: Concourse1 | I2: Total
A3: 1 | B3: Andheri West | C3: L2A | D3: P2 | E3: =GETPIVOTDATA("Total Area",'Space Pivot'!$A$2,"Station","Andheri West","Level","Concourse") -> 577.035 | F3: =GETPIVOTDATA("Total Area",'Space Pivot'!$A$2,"Station","Andheri West","Level","Platform") -> 340.25 | G3: =GETPIVOTDATA("Total Area",'Space Pivot'!$A$2,"Station","Andheri West","Level","Ground") -> 86 | H3: =GETPIVOTDATA("Total Area",'Space Pivot'!$A$2,"Station","Andheri West","Level","Concourse 1") -> 458.805 | I3: =SUM(E3:H3) -> 1462.09
A4: 2 | B4: Lower Oshiwara | C4: L2A | D4: P2 | E4: =GETPIVOTDATA("Total Area",'Space Pivot'!$A$2,"Station","Lower Oshiwara","Level","Concourse") -> 533.245 | F4: =GETPIVOTDATA("Total Area",'Space Pivot'!$A$2,"Station","Lower Oshiwara","Level","Platform") -> 340.26 | G4: =GETPIVOTDATA("Total Area",'Space Pivot'!$A$2,"Station","Lower Oshiwara","Level","Ground") -> 57.6 | I4: =SUM(E4:H4) -> 931.105
A5: 3 | B5: Oshiwara | C5: L2A | D5: P2 | E5: =GETPIVOTDATA("Total Area",'Space Pivot'!$A$2,"Station","Oshiwara","Level","Concourse") -> 558.94 | F5: =GETPIVOTDATA("Total Area",'Space Pivot'!$A$2,"Station","Oshiwara","Level","Platform") -> 329.04 | G5: =GETPIVOTDATA("Total Area",'Space Pivot'!$A$2,"Station","Oshiwara","Level","Ground") -> 57.6 | I5: 945.58
A6: 4 | B6: Goregaon West | C6: L2A | D6: P2 | E6: =GETPIVOTDATA("Total Area",'Space Pivot'!$A$2,"Station","Goregaon West","Level","Concourse") -> 540.202 | F6: =GETPIVOTDATA("Total Area",'Space Pivot'!$A$2,"Station","Goregaon West","Level","Platform") -> 340.26 | G6: =GETPIVOTDATA("Total Area",'Space Pivot'!$A$2,"Station","Goregaon West","Level","Ground") -> 57.6 | I6: 938.062
A7: 5 | B7: Pahadi Goregaon | C7: L2A | D7: P2 | E7: =GETPIVOTDATA("Total Area",'Space Pivot'!$A$2,"Station","Pahadi Goregaon","Level","Concourse") -> 551.845 | F7: =GETPIVOTDATA("Total Area",'Space Pivot'!$A$2,"Station","Pahadi Goregaon","Level","Platform") -> 329.04 | G7: =GETPIVOTDATA("Total Area",'Space Pivot'!$A$2,"Station","Pahadi Goregaon","Level","Ground") -> 57.6 | I7: 938.485
A8: 6 | B8: Lower Malad | C8: L2A | D8: P2 | E8: =GETPIVOTDATA("Total Area",'Space Pivot'!$A$2,"Station","Lower Malad","Level","Concourse") -> 536.587 | F8: =GETPIVOTDATA("Total Area",'Space Pivot'!$A$2,"Station","Lower Malad","Level","Platform") -> 340.26 | G8: =GETPIVOTDATA("Total Area",'Space Pivot'!$A$2,"Station","Lower Malad","Level","Ground") -> 57.6 | I8: 934.447
A9: 7 | B9: Malad West | C9: L2A | D9: P2 | E9: =GETPIVOTDATA("Total Area",'Space Pivot'!$A$2,"Station","Malad West","Level","Concourse") -> 553.348 | F9: =GETPIVOTDATA("Total Area",'Space Pivot'!$A$2,"Station","Malad West","Level","Platform") -> 340.26 | G9: =GETPIVOTDATA("Total Area",'Space Pivot'!$A$2,"Station","Malad West","Level","Ground") -> 57.6 | I9: 951.208
A10: 8 | B10: Valnai | C10: L2A | D10: P2 | E10: =GETPIVOTDATA("Total Area",'Space Pivot'!$A$2,"Station","Valnai","Level","Concourse") -> 500.518 | F10: =GETPIVOTDATA("Total Area",'Space Pivot'!$A$2,"Station","Valnai","Level","Platform") -> 340.26 | G10: =GETPIVOTDATA("Total Area",'Space Pivot'!$A$2,"Station","Valnai","Level","Ground") -> 57.6 | I10: 898.378
A11: 9 | B11: Dahanukarwadi | C11: L2A | D11: P1 | E11: =GETPIVOTDATA("Total Area",'Space Pivot'!$A$2,"Station","Dahanukarwadi","Level","Concourse") -> 550.736 | F11: =GETPIVOTDATA("Total Area",'Space Pivot'!$A$2,"Station","Dahanukarwadi","Level","Platform") -> 328.52 | G11: =GETPIVOTDATA("Total Area",'Space Pivot'!$A$2,"Station","Dahanukarwadi","Level","Ground") -> 33 | I11: 912.256
A12: 10 | B12: Kandivali West | C12: L2A | D12: P1 | E12: =GETPIVOTDATA("Total Area",'Space Pivot'!$A$2,"Station","Kandivali West","Level","Concourse") -> 576.553 | F12: =GETPIVOTDATA("Total Area",'Space Pivot'!$A$2,"Station","Kandivali West","Level","Platform") -> 329.04 | G12: =GETPIVOTDATA("Total Area",'Space Pivot'!$A$2,"Station","Kandivali West","Level","Ground") -> 57.6 | I12: 963.193
A13: 11 | B13: Pahadi Eksar | C13: L2A | D13: P1 | E13: =GETPIVOTDATA("Total Area",'Space Pivot'!$A$2,"Station","Pahadi Eksar","Level","Concourse") -> 568.567 | F13: =GETPIVOTDATA("Total Area",'Space Pivot'!$A$2,"Station","Pahadi Eksar","Level","Platform") -> 340.26 | G13: =GETPIVOTDATA("Total Area",'Space Pivot'!$A$2,"Station","Pahadi Eksar","Level","Ground") -> 57.6 | I13: 966.427
A14: 12 | B14: Borivali West | C14: L2A | D14: P1 | E14: =GETPIVOTDATA("Total Area",'Space Pivot'!$A$2,"Station","Borivali West","Level","Concourse") -> 548.575 | F14: =GETPIVOTDATA("Total Area",'Space Pivot'!$A$2,"Station","Borivali West","Level","Platform") -> 329.04 | G14: =GETPIVOTDATA("Total Area",'Space Pivot'!$A$2,"Station","Borivali West","Level","Ground") -> 57.6 | I14: 935.215
A15: 13 | B15: Eksar | C15: L2A | D15: P1 | E15: =GETPIVOTDATA("Total Area",'Space Pivot'!$A$2,"Station","Eksar","Level","Concourse") -> 566.432 | F15: =GETPIVOTDATA("Total Area",'Space Pivot'!$A$2,"Station","Eksar","Level","Platform") -> 340.306 | G15: =GETPIVOTDATA("Total Area",'Space Pivot'!$A$2,"Station","Eksar","Level","Ground") -> 57.6 | I15: 964.338
A16: 14 | B16: Mandapeshwar | C16: L2A | D16: P1 | E16: =GETPIVOTDATA("Total Area",'Space Pivot'!$A$2,"Station","Mandapeshwar","Level","Concourse") -> 563.445 | F16: =GETPIVOTDATA("Total Area",'Space Pivot'!$A$2,"Station","Mandapeshwar","Level","Platform") -> 329.056 | G16: =GETPIVOTDATA("Total Area",'Space Pivot'!$A$2,"Station","Mandapeshwar","Level","Ground") -> 57.6 | I16: 950.101
A17: 15 | B17: Kandarpada | C17: L2A | D17: P1 | E17: =GETPIVOTDATA("Total Area",'Space Pivot'!$A$2,"Station","Kandarpada","Level","Concourse") -> 560.257 | F17: =GETPIVOTDATA("Total Area",'Space Pivot'!$A$2,"Station","Kandarpada","Level","Platform") -> 329.056 | G17: =GETPIVOTDATA("Total Area",'Space Pivot'!$A$2,"Station","Kandarpada","Level","Ground") -> 57.6 | I17: 946.913
A18: 16 | B18: Upper Dahisar | C18: L2A | D18: P1 | E18: =GETPIVOTDATA("Total Area",'Space Pivot'!$A$2,"Station","Upper Dahisar","Level","Concourse") -> 559.96 | F18: =GETPIVOTDATA("Total Area",'Space Pivot'!$A$2,"Station","Upper Dahisar","Level","Platform") -> 329.056 | G18: =GETPIVOTDATA("Total Area",'Space Pivot'!$A$2,"Station","Upper Dahisar","Level","Ground") -> 57.6 | I18: 946.616
A19: 17 | B19: Dahisar East | C19: L2A | D19: P1 | E19: =GETPIVOTDATA("Total Area",'Space Pivot'!$A$2,"Station","Dahisar East","Level","Concourse") -> 687.32 | F19: =GETPIVOTDATA("Total Area",'Space Pivot'!$A$2,"Station","Dahisar East","Level","Platform") -> 339.756 | G19: =GETPIVOTDATA("Total Area",'Space Pivot'!$A$2,"Station","Dahisar East","Level","Ground") -> 31.05 | I19: 1058.126
A20: 18 | B20: Ovaripada | C20: L7 | D20: P1 | E20: =GETPIVOTDATA("Total Area",'Space Pivot'!$A$2,"Station","Ovaripada","Level","Concourse") -> 652.495 | F20: =GETPIVOTDATA("Total Area",'Space Pivot'!$A$2,"Station","Ovaripada","Level","Platform") -> 347.73 | G20: =GETPIVOTDATA("Total Area",'Space Pivot'!$A$2,"Station","Ovaripada","Level","Ground") -> 58 | I20: 1058.225
A21: 19 | B21: Rashtriya Udyaan | C21: L7 | D21: P1 | E21: =GETPIVOTDATA("Total Area",'Space Pivot'!$A$2,"Station","Rashtriya Udyaan","Level","Concourse") -> 548.595 | F21: =GETPIVOTDATA("Total Area",'Space Pivot'!$A$2,"Station","Rashtriya Udyaan","Level","Platform") -> 347.63 | G21: =GETPIVOTDATA("Total Area",'Space Pivot'!$A$2,"Station","Rashtriya Udyaan","Level","Ground") -> 57.6 | I21: 953.825
A22: 20 | B22: Devipada | C22: L7 | D22: P1 | E22: =GETPIVOTDATA("Total Area",'Space Pivot'!$A$2,"Station","Devipada","Level","Concourse") -> 525.545 | F22: =GETPIVOTDATA("Total Area",'Space Pivot'!$A$2,"Station","Devipada","Level","Platform") -> 346.56 | G22: =GETPIVOTDATA("Total Area",'Space Pivot'!$A$2,"Station","Devipada","Level","Ground") -> 197.82 | I22: 1069.925
A23: 21 | B23: Magathane | C23: L7 | D23: P1 | E23: =GETPIVOTDATA("Total Area",'Space Pivot'!$A$2,"Station","Magathane","Level","Concourse") -> 548.76 | F23: =GETPIVOTDATA("Total Area",'Space Pivot'!$A$2,"Station","Magathane","Level","Platform") -> 347.36 | G23: =GETPIVOTDATA("Total Area",'Space Pivot'!$A$2,"Station","Magathane","Level","Ground") -> 92.2 | I23: 988.32
A24: 22 | B24: Poisar | C24: L7 | D24: P1 | E24: =GETPIVOTDATA("Total Area",'Space Pivot'!$A$2,"Station","Poisar","Level","Concourse") -> 603.635 | F24: =GETPIVOTDATA("Total Area",'Space Pivot'!$A$2,"Station","Poisar","Level","Platform") -> 347.84 | G24: =GETPIVOTDATA("Total Area",'Space Pivot'!$A$2,"Station","Poisar","Level","Ground") -> 57.8 | I24: 1009.275
A25: 23 | B25: Akurli | C25: L7 | D25: P1 | E25: =GETPIVOTDATA("Total Area",'Space Pivot'!$A$2,"Station","Akurli","Level","Concourse") -> 629.67 | F25: =GETPIVOTDATA("Total Area",'Space Pivot'!$A$2,"Station","Akurli","Level","Platform") -> 364.07 | G25: =GETPIVOTDATA("Total Area",'Space Pivot'!$A$2,"Station","Akurli","Level","Ground") -> 89.35 | I25: 1083.09
A26: 24 | B26: Kurar | C26: L7 | D26: P1 | E26: =GETPIVOTDATA("Total Area",'Space Pivot'!$A$2,"Station","Kurar","Level","Concourse") -> 523.42 | F26: =GETPIVOTDATA("Total Area",'Space Pivot'!$A$2,"Station","Kurar","Level","Platform") -> 348.215 | G26: =GETPIVOTDATA("Total Area",'Space Pivot'!$A$2,"Station","Kurar","Level","Ground") -> 224 | I26: 1095.635
A27: 25 | B27: Dindoshi | C27: L7 | D27: P1 | E27: =GETPIVOTDATA("Total Area",'Space Pivot'!$A$2,"Station","Dindoshi","Level","Concourse") -> 650.09 | F27: =GETPIVOTDATA("Total Area",'Space Pivot'!$A$2,"Station","Dindoshi","Level","Platform") -> 348.335 | G27: =GETPIVOTDATA("Total Area",'Space Pivot'!$A$2,"Station","Dindoshi","Level","Ground") -> 107.6 | I27: 1106.025
A28: 26 | B28: Aarey | C28: L7 | D28: P1 | E28: =GETPIVOTDATA("Total Area",'Space Pivot'!$A$2,"Station","Aarey","Level","Concourse") -> 740.565 | F28: =GETPIVOTDATA("Total Area",'Space Pivot'!$A$2,"Station","Aarey","Level","Platform") -> 348.245 | G28: =GETPIVOTDATA("Total Area",'Space Pivot'!$A$2,"Station","Aarey","Level","Ground") -> 109.63 | I28: 1198.44
A29: 27 | B29: Goregaon East | C29: L7 | D29: P2 | E29: =GETPIVOTDATA("Total Area",'Space Pivot'!$A$2,"Station","Goregaon East","Level","Concourse") -> 501.165 | F29: =GETPIVOTDATA("Total Area",'Space Pivot'!$A$2,"Station","Goregaon East","Level","Platform") -> 352.04 | G29: =GETPIVOTDATA("Total Area",'Space Pivot'!$A$2,"Station","Goregaon East","Level","Ground") -> 89.35 | I29: 942.555
A30: 28 | B30: Jogeshwari East | C30: L7 | D30: P2 | E30: =GETPIVOTDATA("Total Area",'Space Pivot'!$A$2,"Station","Jogeshwari East","Level","Concourse") -> 745.365 | F30: =GETPIVOTDATA("Total Area",'Space Pivot'!$A$2,"Station","Jogeshwari East","Level","Platform") -> 347.025 | G30: =GETPIVOTDATA("Total Area",'Space Pivot'!$A$2,"Station","Jogeshwari East","Level","Ground") -> 58 | I30: 1150.39
A31: 29 | B31: Mogra | C31: L7 | D31: P2 | E31: =GETPIVOTDATA("Total Area",'Space Pivot'!$A$2,"Station","Mogra","Level","Concourse") -> 564.13 | F31: =GETPIVOTDATA("Total Area",'Space Pivot'!$A$2,"Station","Mogra","Level","Platform") -> 352.04 | G31: =GETPIVOTDATA("Total Area",'Space Pivot'!$A$2,"Station","Mogra","Level","Ground") -> 116 | I31: 1032.17
A32: 30 | B32: Gundavali | C32: L7 | D32: P2 | E32: =GETPIVOTDATA("Total Area",'Space Pivot'!$A$2,"Station","Gundavali","Level","Concourse") -> 820.0546 | F32: =GETPIVOTDATA("Total Area",'Space Pivot'!$A$2,"Station","Gundavali","Level","Platform") -> 349.56 | G32: =GETPIVOTDATA("Total Area",'Space Pivot'!$A$2,"Station","Gundavali","Level","Ground") -> 31 | I32: 1200.6146
B33: Sub-total Line 2A | E33: =SUM(E3:E19) -> 9533.565 | F33: =SUM(F3:F19) -> 5693.72 | G33: 956.45 | H33: 458.805 | I33: 16642.54
B34: Sub-total Line 7 | E34: =SUM(E20:E32) -> 8053.4896 | F34: =SUM(F20:F32) -> 4546.65 | G34: 1288.35 | I34: =SUM(I20:I32) -> 13888.4896
B35: In-train | I35: =GETPIVOTDATA("Total Area",'Space Pivot'!$A$2,"Station","In-Train","Level","In-Train") -> 11009.856
B36: Total | E36: =E33+E34 -> 17587.0546 | F36: =F33+F34 -> 10240.37 | G36: 2244.8 | H36: 458.805 | I36: =I33+I34+I35 -> 41540.8856
B37: Avg Line 2A stations | E37: =AVERAGE(E3:E19) -> 560.7979412 | F37: =AVERAGE(F3:F19) -> 334.9247059 | G37: =AVERAGE(G3:G19) -> 56.26176471 | I37: =AVERAGE(I3:I19) -> 978.9729412
B38: Avg Line 7 stations | E38: =AVERAGE(E20:E32) -> 619.4992 | F38: =AVERAGE(F20:F32) -> 349.7423077 | G38: =AVERAGE(G20:G32) -> 99.10384615 | I38: =AVERAGE(I20:I32) -> 1068.345354
B39: Avg All stations | E39: =AVERAGE(E3:E32) -> 586.2351533 | F39: =AVERAGE(F3:F32) -> 341.3456667 | G39: =AVERAGE(G3:G32) -> 74.82666667 | I39: =AVERAGE(I3:I32) -> 1017.700987
A41: Please note that above figures are full wall / floor space available at the stations and trains for advertising and actual utilization will be based on Licensee's media plan

Sheet Space Masterdata
A1: ADVERTISING SPACE MASTERDATA | I1: m | J1: m | K1: sqm | L1: sqm | M1: no. | N1: sqm
A2: SN | B2: Line | C2: Phase | D2: Station | E2: Level | F2: Zone | G2: SN | H2: Location | I2: Width | J2: Height | K2: Deductions | L2: Surface Area | M2: Units | N2: Total Area
A3: 1 | B3: 2A | C3: P2 | D3: Andheri West | E3: Ground | F3: NA | G3: 1 | H3: North Lift Door | I3: 1.5 | J3: 2 | L3: =I3*J3-K3 -> 3 | M3: 1 | N3: =L3*M3 -> 3
A4: 2 | B4: 2A | C4: P2 | D4: Andheri West | E4: Ground | F4: NA | G4: 2 | H4: Staircases/ Escalators | L4: 13.5 | M4: 2 | N4: 27
A5: 3 | B5: 2A | C5: P2 | D5: Andheri West | E5: Ground | F5: NA | G5: 3 | H5: South Lift Door | I5: 1 | J5: 2 | L5: =I5*J5-K5 -> 2 | M5: 1 | N5: 2
A6: 4 | B6: 2A | C6: P2 | D6: Andheri West | E6: Ground | F6: NA | G6: 4 | H6: Staircases/ Escalators | L6: 13.5 | M6: 2 | N6: 27
A7: 5 | B7: 2A | C7: P2 | D7: Andheri West | E7: Concourse 1 | F7: NA | G7: 1 | H7: Column | I7: 5.045 | J7: 3 | L7: =I7*J7-K7 -> 15.135 | M7: 1 | N7: 15.135
A8: 6 | B8: 2A | C8: P2 | D8: Andheri West | E8: Concourse 1 | F8: NA | G8: 2 | H8: Column | I8: 2.765 | J8: 3 | L8: 8.295 | M8: 1 | N8: 8.295
A9: 7 | B9: 2A | C9: P2 | D9: Andheri West | E9: Concourse 1 | F9: NA | G9: 3 | H9: Column | I9: 2.03 | J9: 2 | L9: 4.06 | M9: 1 | N9: 4.06
A10: 8 | B10: 2A | C10: P2 | D10: Andheri West | E10: Concourse 1 | F10: NA | G10: 4 | H10: Column | I10: 8.92 | J10: 3 | L10: 26.76 | M10: 1 | N10: 26.76
A11: 9 | B11: 2A | C11: P2 | D11: Andheri West | E11: Concourse 1 | F11: NA | G11: 5 | H11: Column | I11: 9.62 | J11: 3 | L11: 28.86 | M11: 1 | N11: 28.86
A12: 10 | B12: 2A | C12: P2 | D12: Andheri West | E12: Concourse 1 | F12: NA | G12: 6 | H12: Lift door | I12: 1 | J12: 2 | L12: 2 | M12: 1 | N12: 2
A13: 11 | B13: 2A | C13: P2 | D13: Andheri West | E13: Concourse 1 | F13: NA | G13: 7 | H13: Lift door | I13: 1.5 | J13: 2 | L13: 3 | M13: 1 | N13: 3
A14: 12 | B14: 2A | C14: P2 | D14: Andheri West | E14: Concourse 1 | F14: NA | G14: 8 | H14: Escalator | L14: 12.2 | M14: 9 | N14: 109.8
A15: 13 | B15: 2A | C15: P2 | D15: Andheri West | E15: Concourse 1 | F15: NA | G15: 9 | H15: Entry wall (between gridline 8 and 9) | I15: 19.195 | J15: 3 | L15: =I15*J15-K15 -> 57.585 | M15: 1 | N15: 57.585
A16: 14 | B16: 2A | C16: P2 | D16: Andheri West | E16: Concourse 1 | F16: NA | G16: 10 | H16: Walls along retail units | I16: 4 | J16: 2 | L16: 8 | M16: 16 | N16: 128
A17: 15 | B17: 2A | C17: P2 | D17: Andheri West | E17: Concourse 1 | F17: NA | G17: 11 | H17: Entry wall North | I17: 11.665 | J17: 3 | L17: 34.995 | M17: 1 | N17: 34.995
A18: 16 | B18: 2A | C18: P2 | D18: Andheri West | E18: Concourse 1 | F18: NA | G18: 12 | H18: Entry wall South | I18: 3.49 | J18: 3 | L18: 10.47 | M18: 2 | N18: 20.94
A19: 17 | B19: 2A | C19: P2 | D19: Andheri West | E19: Concourse 1 | F19: NA | G19: 13 | H19: Entry wall South | I19: 3.46 | J19: 3 | L19: 10.38 | M19: 3 | N19: 31.14
A20: 18 | B20: 2A | C20: P2 | D20: Andheri West | E20: Concourse | F20: Unpaid South | G20: 1 | H20: Entry Wall | I20: 10.385 | J20: 3 | L20: 31.155 | M20: 1 | N20: 31.155
A21: 19 | B21: 2A | C21: P2 | D21: Andheri West | E21: Concourse | F21: Unpaid South | G21: 2 | H21: Column | I21: 6.49 | J21: 3 | L21: 19.47 | M21: 1 | N21: 19.47
A22: 20 | B22: 2A | C22: P2 | D22: Andheri West | E22: Concourse | F22: Unpaid South | G22: 3 | H22: AFC Gates | I22: 3 | J22: 0.98 | L22: 2.94 | M22: 8 | N22: 23.52
A23: 21 | B23: 2A | C23: P2 | D23: Andheri West | E23: Concourse | F23: Unpaid South | G23: 4 | H23: Lift Door | I23: 1 | J23: 2 | L23: 2 | M23: 1 | N23: 2
A24: 22 | B24: 2A | C24: P2 | D24: Andheri West | E24: Concourse | F24: Unpaid North | G24: 5 | H24: Entry Wall | I24: 2.245 | J24: 3 | L24: 6.735 | M24: 1 | N24: 6.735
A25: 23 | B25: 2A | C25: P2 | D25: Andheri West | E25: Concourse | F25: Unpaid North | G25: 5 | H25: Entry Wall | I25: 6.795 | J25: 3 | L25: 20.385 | M25: 1 | N25: 20.385
A26: 24 | B26: 2A | C26: P2 | D26: Andheri West | E26: Concourse | F26: Unpaid North | G26: 6 | H26: Column | I26: 5.99 | J26: 3 | L26: 17.97 | M26: 1 | N26: 17.97
A27: 25 | B27: 2A | C27: P2 | D27: Andheri West | E27: Concourse | F27: Unpaid North | G27: 7 | H27: AFC Gates | I27: 3 | J27: 0.98 | L27: 2.94 | M27: 8 | N27: 23.52
A28: 26 | B28: 2A | C28: P2 | D28: Andheri West | E28: Concourse | F28: Unpaid North | G28: 8 | H28: Lift Door | I28: 1.5 | J28: 2 | L28: 3 | M28: 1 | N28: 3
A29: 27 | B29: 2A | C29: P2 | D29: Andheri West | E29: Concourse | F29: Paid | G29: 9 | H29: Column (Gridline 09) | I29: 8.69 | J29: 3 | L29: 26.07 | M29: 1 | N29: 26.07
A30: 28 | B30: 2A | C30: P2 | D30: Andheri West | E30: Concourse | F30: Paid | G30: 10 | H30: Station Control Room Wall | I30: 4.84 | J30: 3 | L30: 14.52 | M30: 1 | N30: 14.52
A31: 29 | B31: 2A | C31: P2 | D31: Andheri West | E31: Concourse | F31: Paid | G31: 10 | H31: Station Control Room Wall | I31: 6.09 | J31: 3 | L31: 18.27 | M31: 1 | N31: 18.27
A32: 30 | B32: 2A | C32: P2 | D32: Andheri West | E32: Concourse | F32: Paid | G32: 10 | H32: Station Control Room Wall | I32: 4.005 | J32: 3 | L32: 12.015 | M32: 1 | N32: 12.015
A33: 31 | B33: 2A | C33: P2 | D33: Andheri West | E33: Concourse | F33: Paid | G33: 11 | H33: Toilet wall | I33: 16.515 | J33: 3 | K33: 2.8 | L33: 46.745 | M33: 1 | N33: 46.745
A34: 32 | B34: 2A | C34: P2 | D34: Andheri West | E34: Concourse | F34: Paid | G34: 11 | H34: Toilet wall | I34: 3.98 | J34: 3 | L34: 11.94 | M34: 1 | N34: 11.94
A35: 33 | B35: 2A | C35: P2 | D35: Andheri West | E35: Concourse | F35: Paid | G35: 11 | H35: Toilet wall | I35: 4 | J35: 2 | L35: 8 | M35: 2 | N35: 16
A36: 34 | B36: 2A | C36: P2 | D36: Andheri West | E36: Concourse | F36: Paid | G36: 12 | H36: Lift Door | I36: 1 | J36: 2 | L36: 2 | M36: 2 | N36: 4
A37: 35 | B37: 2A | C37: P2 | D37: Andheri West | E37: Concourse | F37: Paid | G37: 13 | H37: Lift Wall | I37: 0.875 | J37: 3 | L37: 2.625 | M37: 1 | N37: 2.625
A38: 36 | B38: 2A | C38: P2 | D38: Andheri West | E38: Concourse | F38: Paid | G38: 13 | H38: Lift Wall | I38: 0.875 | J38: 3 | L38: 2.625 | M38: 1 | N38: 2.625
A39: 37 | B39: 2A | C39: P2 | D39: Andheri West | E39: Concourse | F39: Paid | G39: 14 | H39: Escalators | L39: 12.2 | M39: 8 | N39: 97.6
A40: 38 | B40: 2A | C40: P2 | D40: Andheri West | E40: Concourse | F40: Paid | G40: 14 | H40: Escalators | L40: 4.8 | M40: 4 | N40: 19.2
A41: 39 | B41: 2A | C41: P2 | D41: Andheri West | E41: Concourse | F41: Paid | G41: 15 | H41: Staircases | I41: 4 | J41: 2 | L41: =I41*J41-K41 -> 8 | M41: 5 | N41: 40
A42: 40 | B42: 2A | C42: P2 | D42: Andheri West | E42: Concourse | F42: Paid | G42: 16 | H42: Column (Gridline 04) | I42: 6.49 | J42: 3 | L42: 19.47 | M42: 1 | N42: 19.47
A43: 41 | B43: 2A | C43: P2 | D43: Andheri West | E43: Concourse | F43: Paid | G43: 17 | H43: Column (Gridline 06) | I43: 8.02 | J43: 3 | L43: 24.06 | M43: 1 | N43: 24.06
A44: 42 | B44: 2A | C44: P2 | D44: Andheri West | E44: Platform | F44: NA | G44: 1 | H44: Staircases/ Escalators | I44: 2 | J44: 2 | L44: 4 | M44: 10 | N44: 40
A45: 43 | B45: 2A | C45: P2 | D45: Andheri West | E45: Platform | F45: NA | G45: 2 | H45: Lift Wall | I45: 3.425 | J45: 3 | L45: 10.275 | M45: 1 | N45: 10.275
A46: 44 | B46: 2A | C46: P2 | D46: Andheri West | E46: Platform | F46: NA | G46: 3 | H46: Lift Wall | I46: 3.425 | J46: 3 | L46: 10.275 | M46: 1 | N46: 10.275
A47: 45 | B47: 2A | C47: P2 | D47: Andheri West | E47: Platform | F47: NA | G47: 4 | H47: Lift Door | I47: 1 | J47: 2 | L47: 2 | M47: 2 | N47: 4
A48: 46 | B48: 2A | C48: P2 | D48: Andheri West | E48: Platform | F48: NA | G48: 5 | H48: Staircase Bulk Head | I48: 2 | J48: 4 | L48: 8 | M48: 8 | N48: 64
A49: 47 | B49: 2A | C49: P2 | D49: Andheri West | E49: Platform | F49: NA | G49: 6 | H49: Parapet Walls | I49: 8.53 | J49: 0.5 | L49: 4.265 | M49: 8 | N49: 34.12
A50: 48 | B50: 2A | C50: P2 | D50: Andheri West | E50: Platform | F50: NA | G50: 6 | H50: Parapet Walls | I50: 12.14 | J50: 0.5 | L50: 6.07 | M50: 4 | N50: 24.28
A51: 49 | B51: 2A | C51: P2 | D51: Andheri West | E51: Platform | F51: NA | G51: 7 | H51: Platform Screen Doors | I51: 76.66 | J51: 1 | L51: 76.66 | M51: 2 | N51: 153.32
A52: 50 | B52: 2A | C52: P2 | D52: Lower Oshiwara | E52: Ground | F52: NA | G52: 1 | H52: Lift Door | I52: 0.9 | J52: 2 | L52: 1.8 | M52: 1 | N52: 1.8
A53: 51 | B53: 2A | C53: P2 | D53: Lower Oshiwara | E53: Ground | F53: NA | G53: 2 | H53: Staircases/ Escalators | L53: 13.5 | M53: 2 | N53: 27
A54: 52 | B54: 2A | C54: P2 | D54: Lower Oshiwara | E54: Ground | F54: NA | G54: 3 | H54: Lift Door | I54: 0.9 | J54: 2 | L54: =I54*J54-K54 -> 1.8 | M54: 1 | N54: 1.8
A55: 53 | B55: 2A | C55: P2 | D55: Lower Oshiwara | E55: Ground | F55: NA | G55: 4 | H55: Staircases/ Escalators | L55: 13.5 | M55: 2 | N55: 27
A56: 54 | B56: 2A | C56: P2 | D56: Lower Oshiwara | E56: Concourse | F56: Unpaid South | G56: 5 | H56: Wall | I56: 6.475 | J56: 3 | L56: =I56*J56-K56 -> 19.425 | M56: 1 | N56: 19.425
A57: 55 | B57: 2A | C57: P2 | D57: Lower Oshiwara | E57: Concourse | F57: Unpaid South | G57: 5 | H57: Wall | I57: 3.4 | J57: 3 | L57: 10.2 | M57: 1 | N57: 10.2
A58: 56 | B58: 2A | C58: P2 | D58: Lower Oshiwara | E58: Concourse | F58: Unpaid South | G58: 6 | H58: Column | I58: 6.66 | J58: 3 | L58: 19.98 | M58: 1 | N58: 19.98
A59: 57 | B59: 2A | C59: P2 | D59: Lower Oshiwara | E59: Concourse | F59: Unpaid South | G59: 7 | H59: Staircases/ Escalators | I59: 4 | J59: 2 | L59: 8 | M59: 1 | N59: 8
A60: 58 | B60: 2A | C60: P2 | D60: Lower Oshiwara | E60: Concourse | F60: Unpaid South | G60: 8 | H60: AFC Gates | I60: 3 | J60: 0.98 | L60: 2.94 | M60: 11 | N60: 32.34
A61: 59 | B61: 2A | C61: P2 | D61: Lower Oshiwara | E61: Concourse | F61: Unpaid South | G61: 9 | H61: Lift Door | I61: 0.9 | J61: 2 | L61: 1.8 | M61: 1 | N61: 1.8
A62: 60 | B62: 2A | C62: P2 | D62: Lower Oshiwara | E62: Concourse | F62: Unpaid North | G62: 1 | H62: Staircases/ Escalators | I62: 4 | J62: 2 | L62: 8 | M62: 1 | N62: 8
A63: 61 | B63: 2A | C63: P2 | D63: Lower Oshiwara | E63: Concourse | F63: Unpaid North | G63: 2 | H63: Column | I63: 6.49 | J63: 3 | L63: 19.47 | M63: 1 | N63: 19.47
A64: 62 | B64: 2A | C64: P2 | D64: Lower Oshiwara | E64: Concourse | F64: Unpaid North | G64: 3 | H64: AFC Gates | I64: 3 | J64: 0.98 | L64: 2.94 | M64: 11 | N64: 32.34
A65: 63 | B65: 2A | C65: P2 | D65: Lower Oshiwara | E65: Concourse | F65: Unpaid North | G65: 4 | H65: Lift Door | I65: 0.9 | J65: 2 | L65: 1.8 | M65: 1 | N65: 1.8
A66: 64 | B66: 2A | C66: P2 | D66: Lower Oshiwara | E66: Concourse | F66: Paid | G66: 10 | H66: Column | I66: 8.6 | J66: 3 | L66: 25.8 | M66: 1 | N66: 25.8
A67: 65 | B67: 2A | C67: P2 | D67: Lower Oshiwara | E67: Concourse | F67: Paid | G67: 11 | H67: Wall | I67: 4.79 | J67: 3 | L67: 14.37 | M67: 1 | N67: =L67*M67 -> 14.37
A68: 66 | B68: 2A | C68: P2 | D68: Lower Oshiwara | E68: Concourse | F68: Paid | G68: 11 | H68: Wall | I68: 5.755 | J68: 3 | L68: 17.265 | M68: 1 | N68: 17.265
A69: 67 | B69: 2A | C69: P2 | D69: Lower Oshiwara | E69: Concourse | F69: Paid | G69: 11 | H69: Wall | I69: 4 | J69: 3 | L69: 12 | M69: 1 | N69: 12
A70: 68 | B70: 2A | C70: P2 | D70: Lower Oshiwara | E70: Concourse | F70: Paid | G70: 11 | H70: Wall | I70: 10.49 | J70: 3 | L70: 31.47 | M70: 1 | N70: 31.47
A71: 69 | B71: 2A | C71: P2 | D71: Lower Oshiwara | E71: Concourse | F71: Paid | G71: 11 | H71: Wall | I71: 4.05 | J71: 3 | L71: 12.15 | M71: 1 | N71: 12.15
A72: 70 | B72: 2A | C72: P2 | D72: Lower Oshiwara | E72: Concourse | F72: Paid | G72: 12 | H72: Wall | I72: 16.53 | J72: 3 | K72: 2.8 | L72: 46.79 | M72: 1 | N72: 46.79
A73: 71 | B73: 2A | C73: P2 | D73: Lower Oshiwara | E73: Concourse | F73: Paid | G73: 12 | H73: Wall | I73: 4 | J73: 3 | L73: 12 | M73: 1 | N73: 12
A74: 72 | B74: 2A | C74: P2 | D74: Lower Oshiwara | E74: Concourse | F74: Paid | G74: 12 | H74: Wall | I74: 10.135 | J74: 3 | L74: 30.405 | M74: 1 | N74: 30.405
A75: 73 | B75: 2A | C75: P2 | D75: Lower Oshiwara | E75: Concourse | F75: Paid | G75: 13 | H75: Lift Door | I75: 1 | J75: 2 | L75: 2 | M75: 2 | N75: 4
A76: 74 | B76: 2A | C76: P2 | D76: Lower Oshiwara | E76: Concourse | F76: Paid | G76: 14 | H76: Lift Wall | I76: 0.875 | J76: 3 | L76: 2.625 | M76: 1 | N76: 2.625
A77: 75 | B77: 2A | C77: P2 | D77: Lower Oshiwara | E77: Concourse | F77: Paid | G77: 14 | H77: Lift Wall | I77: 0.875 | J77: 3 | L77: 2.625 | M77: 1 | N77: 2.625
A78: 76 | B78: 2A | C78: P2 | D78: Lower Oshiwara | E78: Concourse | F78: Paid | G78: 15 | H78: Staircases/ Escalators | L78: 12.2 | M78: 8 | N78: 97.6
A79: 77 | B79: 2A | C79: P2 | D79: Lower Oshiwara | E79: Concourse | F79: Paid | G79: 15 | H79: Staircases/ Escalators | L79: 4.83 | M79: 4 | N79: 19.32
A80: 78 | B80: 2A | C80: P2 | D80: Lower Oshiwara | E80: Concourse | F80: Paid | G80: 15 | H80: Staircases/ Escalators | I80: 4 | J80: 2 | L80: =I80*J80-K80 -> 8 | M80: 4 | N80: 32
A81: 79 | B81: 2A | C81: P2 | D81: Lower Oshiwara | E81: Concourse | F81: Paid | G81: 16 | H81: Column | I81: 6.49 | J81: 3 | L81: 19.47 | M81: 1 | N81: 19.47
A82: 80 | B82: 2A | C82: P2 | D82: Lower Oshiwara | E82: Platform | F82: NA | G82: 1 | H82: Staircases/ Escalators | I82: 2 | J82: 2 | L82: 4 | M82: 10 | N82: 40
A83: 81 | B83: 2A | C83: P2 | D83: Lower Oshiwara | E83: Platform | F83: NA | G83: 2 | H83: Lift Wall | I83: 3.42 | J83: 3 | L83: 10.26 | M83: 1 | N83: 10.26
A84: 82 | B84: 2A | C84: P2 | D84: Lower Oshiwara | E84: Platform | F84: NA | G84: 3 | H84: Lift Wall | I84: 3.42 | J84: 3 | L84: 10.26 | M84: 1 | N84: 10.26
A85: 83 | B85: 2A | C85: P2 | D85: Lower Oshiwara | E85: Platform | F85: NA | G85: 4 | H85: Lift Door | I85: 1 | J85: 2 | L85: 2 | M85: 2 | N85: 4
A86: 84 | B86: 2A | C86: P2 | D86: Lower Oshiwara | E86: Platform | F86: NA | G86: 5 | H86: Staircase Bulk Head | I86: 2 | J86: 4 | L86: 8 | M86: 8 | N86: 64
A87: 85 | B87: 2A | C87: P2 | D87: Lower Oshiwara | E87: Platform | F87: NA | G87: 6 | H87: Parapet Walls | I87: 8.53 | J87: 0.5 | L87: 4.265 | M87: 8 | N87: 34.12
A88: 86 | B88: 2A | C88: P2 | D88: Lower Oshiwara | E88: Platform | F88: NA | G88: 6 | H88: Parapet Walls | I88: 12.15 | J88: 0.5 | L88: 6.075 | M88: 4 | N88: 24.3
A89: 87 | B89: 2A | C89: P2 | D89: Lower Oshiwara | E89: Platform | F89: NA | G89: 7 | H89: Platform Screen Doors | I89: 76.66 | J89: 1 | L89: 76.66 | M89: 2 | N89: 153.32
A90: 88 | B90: 2A | C90: P2 | D90: Oshiwara | E90: Ground | F90: NA | G90: 1 | H90: Lift Door | I90: 0.9 | J90: 2 | L90: 1.8 | M90: 2 | N90: 3.6
A91: 89 | B91: 2A | C91: P2 | D91: Oshiwara | E91: Ground | F91: NA | G91: 2 | H91: Staircases/ Escalators | L91: 13.5 | M91: 4 | N91: 54
A92: 90 | B92: 2A | C92: P2 | D92: Oshiwara | E92: Concourse | F92: Unpaid South | G92: 5 | H92: Wall | I92: 3.22 | J92: 3 | L92: =I92*J92-K92 -> 9.66 | M92: 1 | N92: 9.66
A93: 91 | B93: 2A | C93: P2 | D93: Oshiwara | E93: Concourse | F93: Unpaid South | G93: 5 | H93: Wall | I93: 2.66 | J93: 3 | L93: 7.98 | M93: 1 | N93: 7.98
A94: 92 | B94: 2A | C94: P2 | D94: Oshiwara | E94: Concourse | F94: Unpaid South | G94: 5 | H94: Wall | I94: 6.5 | J94: 3 | L94: 19.5 | M94: 1 | N94: 19.5
A95: 93 | B95: 2A | C95: P2 | D95: Oshiwara | E95: Concourse | F95: Unpaid South | G95: 6 | H95: Column | I95: 6.69 | J95: 3 | L95: 20.07 | M95: 1 | N95: 20.07
A96: 94 | B96: 2A | C96: P2 | D96: Oshiwara | E96: Concourse | F96: Unpaid South | G96: 7 | H96: AFC Gates | I96: 4 | J96: 2 | L96: 8 | M96: 1 | N96: 8
A97: 95 | B97: 2A | C97: P2 | D97: Oshiwara | E97: Concourse | F97: Unpaid South | G97: 8 | H97: Staircases/ Escalators | I97: 3 | J97: 0.98 | L97: 2.94 | M97: 11 | N97: 32.34
A98: 96 | B98: 2A | C98: P2 | D98: Oshiwara | E98: Concourse | F98: Unpaid North | G98: 1 | H98: Staircases/ Escalators | I98: 4 | J98: 2 | L98: 8 | M98: 1 | N98: 8
A99: 97 | B99: 2A | C99: P2 | D99: Oshiwara | E99: Concourse | F99: Unpaid North | G99: 1 | H99: Wall | I99: 4.74 | J99: 3 | L99: 14.22 | M99: 1 | N99: 14.22
A100: 98 | B100: 2A | C100: P2 | D100: Oshiwara | E100: Concourse | F100: Unpaid North | G100: 2 | H100: Column | I100: 6.49 | J100: 3 | L100: 19.47 | M100: 1 | N100: 19.47
A101: 99 | B101: 2A | C101: P2 | D101: Oshiwara | E101: Concourse | F101: Unpaid North | G101: 3 | H101: AFC Gates | I101: 3 | J101: 0.98 | L101: 2.94 | M101: 11 | N101: 32.34
A102: 100 | B102: 2A | C102: P2 | D102: Oshiwara | E102: Concourse | F102: Unpaid North | G102: 4 | H102: Lift Door | I102: 0.9 | J102: 2 | L102: 1.8 | M102: 2 | N102: 3.6
A103: 101 | B103: 2A | C103: P2 | D103: Oshiwara | E103: Concourse | F103: Paid | G103: 9 | H103: Column | I103: 6.5 | J103: 3 | L103: 19.5 | M103: 1 | N103: 19.5
A104: 102 | B104: 2A | C104: P2 | D104: Oshiwara | E104: Concourse | F104: Paid | G104: 10 | H104: Wall | I104: 4.79 | J104: 3 | L104: 14.37 | M104: 1 | N104: 14.37
A105: 103 | B105: 2A | C105: P2 | D105: Oshiwara | E105: Concourse | F105: Paid | G105: 10 | H105: Wall | I105: 5.76 | J105: 3 | L105: 17.28 | M105: 1 | N105: 17.28
A106: 104 | B106: 2A | C106: P2 | D106: Oshiwara | E106: Concourse | F106: Paid | G106: 10 | H106: Wall | I106: 4 | J106: 3 | L106: 12 | M106: 1 | N106: 12
A107: 105 | B107: 2A | C107: P2 | D107: Oshiwara | E107: Concourse | F107: Paid | G107: 10 | H107: Wall | I107: 11.64 | J107: 3 | L107: 34.92 | M107: 1 | N107: 34.92
A108: 106 | B108: 2A | C108: P2 | D108: Oshiwara | E108: Concourse | F108: Paid | G108: 10 | H108: Wall | I108: 4.05 | J108: 3 | L108: 12.15 | M108: 1 | N108: 12.15
A109: 107 | B109: 2A | C109: P2 | D109: Oshiwara | E109: Concourse | F109: Paid | G109: 11 | H109: Wall | I109: 16.55 | J109: 3 | K109: 2.8 | L109: 46.85 | M109: 1 | N109: 46.85
A110: 108 | B110: 2A | C110: P2 | D110: Oshiwara | E110: Concourse | F110: Paid | G110: 11 | H110: Wall | I110: 4 | J110: 3 | L110: 12 | M110: 1 | N110: 12
A111: 109 | B111: 2A | C111: P2 | D111: Oshiwara | E111: Concourse | F111: Paid | G111: 11 | H111: Wall | I111: 10.13 | J111: 3 | L111: 30.39 | M111: 1 | N111: 30.39
A112: 110 | B112: 2A | C112: P2 | D112: Oshiwara | E112: Concourse | F112: Paid | G112: 12 | H112: Lift Door | I112: 1 | J112: 2 | L112: 2 | M112: 2 | N112: 4
A113: 111 | B113: 2A | C113: P2 | D113: Oshiwara | E113: Concourse | F113: Paid | G113: 13 | H113: Lift Wall | I113: 0.88 | J113: 3 | L113: 2.64 | M113: 1 | N113: 2.64
A114: 112 | B114: 2A | C114: P2 | D114: Oshiwara | E114: Concourse | F114: Paid | G114: 13 | H114: Lift Wall | I114: 0.88 | J114: 3 | L114: 2.64 | M114: 1 | N114: 2.64
A115: 113 | B115: 2A | C115: P2 | D115: Oshiwara | E115: Concourse | F115: Paid | G115: 14 | H115: Staircases/ Escalators | L115: 12.2 | M115: 8 | N115: 97.6
A116: 114 | B116: 2A | C116: P2 | D116: Oshiwara | E116: Concourse | F116: Paid | G116: 14 | H116: Staircases/ Escalators | L116: 4.83 | M116: 4 | N116: 19.32
A117: 115 | B117: 2A | C117: P2 | D117: Oshiwara | E117: Concourse | F117: Paid | G117: 14 | H117: Staircases/ Escalators | I117: 4 | J117: 2 | L117: =I117*J117-K117 -> 8 | M117: 4 | N117: 32
A118: 116 | B118: 2A | C118: P2 | D118: Oshiwara | E118: Concourse | F118: Paid | G118: 15 | H118: Column | I118: 8.7 | J118: 3 | L118: 26.1 | M118: 1 | N118: 26.1
A119: 117 | B119: 2A | C119: P2 | D119: Oshiwara | E119: Platform | F119: NA | G119: 1 | H119: Staircases/ Escalators | I119: 2 | J119: 2 | L119: 4 | M119: 10 | N119: 40
A120: 118 | B120: 2A | C120: P2 | D120: Oshiwara | E120: Platform | F120: NA | G120: 2 | H120: Lift Wall | I120: 3.42 | J120: 3 | L120: 10.26 | M120: 1 | N120: 10.26
A121: 119 | B121: 2A | C121: P2 | D121: Oshiwara | E121: Platform | F121: NA | G121: 3 | H121: Lift Wall | I121: 3.42 | J121: 3 | L121: 10.26 | M121: 1 | N121: 10.26
A122: 120 | B122: 2A | C122: P2 | D122: Oshiwara | E122: Platform | F122: NA | G122: 4 | H122: Lift Door | I122: 1 | J122: 2 | L122: 2 | M122: 2 | N122: 4
A123: 121 | B123: 2A | C123: P2 | D123: Oshiwara | E123: Platform | F123: NA | G123: 5 | H123: Staircase Bulk Head | I123: 2 | J123: 4 | L123: 8 | M123: 8 | N123: 64
A124: 122 | B124: 2A | C124: P2 | D124: Oshiwara | E124: Platform | F124: NA | G124: 6 | H124: Parapet Walls | I124: 8.53 | J124: 0.5 | L124: 4.265 | M124: 8 | N124: 34.12
A125: 123 | B125: 2A | C125: P2 | D125: Oshiwara | E125: Platform | F125: NA | G125: 6 | H125: Parapet Walls | I125: 12.15 | J125: 0.5 | L125: 6.075 | M125: 4 | N125: 24.3
A126: 124 | B126: 2A | C126: P2 | D126: Oshiwara | E126: Platform | F126: NA | G126: 7 | H126: Platform Screen Doors | I126: 71.05 | J126: 1 | L126: 71.05 | M126: 2 | N126: 142.1
A127: 125 | B127: 2A | C127: P2 | D127: Goregaon West | E127: Ground | F127: NA | G127: 1 | H127: Lift Door | I127: 0.9 | J127: 2 | L127: 1.8 | M127: 1 | N127: 1.8
A128: 126 | B128: 2A | C128: P2 | D128: Goregaon West | E128: Ground | F128: NA | G128: 2 | H128: Staircases/ Escalators | L128: 13.5 | M128: 2 | N128: 27
A129: 127 | B129: 2A | C129: P2 | D129: Goregaon West | E129: Ground | F129: NA | G129: 3 | H129: Lift Door | I129: 0.9 | J129: 2 | L129: =I129*J129-K129 -> 1.8 | M129: 1 | N129: 1.8
A130: 128 | B130: 2A | C130: P2 | D130: Goregaon West | E130: Ground | F130: NA | G130: 4 | H130: Staircases/ Escalators | L130: 13.5 | M130: 2 | N130: 27
A131: 129 | B131: 2A | C131: P2 | D131: Goregaon West | E131: Concourse | F131: Unpaid South | G131: 1 | H131: Staircases/ Escalators | I131: 4 | J131: 2 | L131: =I131*J131-K131 -> 8 | M131: 1 | N131: =L131*M131 -> 8
A132: 130 | B132: 2A | C132: P2 | D132: Goregaon West | E132: Concourse | F132: Unpaid South | G132: 2 | H132: Column | I132: 6.49 | J132: 3 | L132: 19.47 | M132: 1 | N132: 19.47
A133: 131 | B133: 2A | C133: P2 | D133: Goregaon West | E133: Concourse | F133: Unpaid South | G133: 3 | H133: Wall | I133: 2.316 | J133: 3 | L133: 6.948 | M133: 1 | N133: 6.948
A134: 132 | B134: 2A | C134: P2 | D134: Goregaon West | E134: Concourse | F134: Unpaid South | G134: 4 | H134: AFC Gates | I134: 3 | J134: 0.98 | L134: 2.94 | M134: 11 | N134: 32.34
A135: 133 | B135: 2A | C135: P2 | D135: Goregaon West | E135: Concourse | F135: Unpaid South | G135: 5 | H135: Lift Door | I135: 0.9 | J135: 2 | L135: 1.8 | M135: 1 | N135: 1.8
A136: 134 | B136: 2A | C136: P2 | D136: Goregaon West | E136: Concourse | F136: Unpaid North | G136: 6 | H136: Wall | I136: 6.477 | J136: 3 | L136: 19.431 | M136: 1 | N136: 19.431
A137: 135 | B137: 2A | C137: P2 | D137: Goregaon West | E137: Concourse | F137: Unpaid North | G137: 6 | H137: Wall | I137: 3.4 | J137: 3 | L137: 10.2 | M137: 1 | N137: 10.2
A138: 136 | B138: 2A | C138: P2 | D138: Goregaon West | E138: Concourse | F138: Unpaid North | G138: 7 | H138: Column | I138: 6.66 | J138: 3 | L138: 19.98 | M138: 1 | N138: 19.98
A139: 137 | B139: 2A | C139: P2 | D139: Goregaon West | E139: Concourse | F139: Unpaid North | G139: 8 | H139: Staircases/ Escalators | I139: 4 | J139: 2 | L139: 8 | M139: 1 | N139: 8
A140: 138 | B140: 2A | C140: P2 | D140: Goregaon West | E140: Concourse | F140: Unpaid North | G140: 9 | H140: AFC Gates | I140: 3 | J140: 0.98 | L140: 2.94 | M140: 11 | N140: 32.34
A141: 139 | B141: 2A | C141: P2 | D141: Goregaon West | E141: Concourse | F141: Unpaid North | G141: 10 | H141: Lift Door | I141: 0.9 | J141: 2 | L141: 1.8 | M141: 1 | N141: 1.8
A142: 140 | B142: 2A | C142: P2 | D142: Goregaon West | E142: Concourse | F142: Paid | G142: 11 | H142: Column | I142: 8.6 | J142: 3 | L142: 25.8 | M142: 1 | N142: 25.8
A143: 141 | B143: 2A | C143: P2 | D143: Goregaon West | E143: Concourse | F143: Paid | G143: 12 | H143: Wall | I143: 4.789 | J143: 3 | L143: 14.367 | M143: 1 | N143: 14.367
A144: 142 | B144: 2A | C144: P2 | D144: Goregaon West | E144: Concourse | F144: Paid | G144: 12 | H144: Wall | I144: 5.757 | J144: 3 | L144: 17.271 | M144: 1 | N144: 17.271
A145: 143 | B145: 2A | C145: P2 | D145: Goregaon West | E145: Concourse | F145: Paid | G145: 12 | H145: Wall | I145: 4 | J145: 3 | L145: 12 | M145: 1 | N145: 12
A146: 144 | B146: 2A | C146: P2 | D146: Goregaon West | E146: Concourse | F146: Paid | G146: 12 | H146: Wall | I146: 10.489 | J146: 3 | L146: 31.467 | M146: 1 | N146: 31.467
A147: 145 | B147: 2A | C147: P2 | D147: Goregaon West | E147: Concourse | F147: Paid | G147: 12 | H147: Wall | I147: 4.05 | J147: 3 | L147: 12.15 | M147: 1 | N147: 12.15
A148: 146 | B148: 2A | C148: P2 | D148: Goregaon West | E148: Concourse | F148: Paid | G148: 13 | H148: Wall | I148: 16.53 | J148: 3 | K148: 2.8 | L148: 46.79 | M148: 1 | N148: 46.79
A149: 147 | B149: 2A | C149: P2 | D149: Goregaon West | E149: Concourse | F149: Paid | G149: 13 | H149: Wall | I149: 4 | J149: 3 | L149: 12 | M149: 1 | N149: 12
A150: 148 | B150: 2A | C150: P2 | D150: Goregaon West | E150: Concourse | F150: Paid | G150: 13 | H150: Wall | I150: 10.134 | J150: 3 | L150: 30.402 | M150: 1 | N150: 30.402
A151: 149 | B151: 2A | C151: P2 | D151: Goregaon West | E151: Concourse | F151: Paid | G151: 14 | H151: Lift Door | I151: 1 | J151: 2 | L151: 2 | M151: 2 | N151: 4
A152: 150 | B152: 2A | C152: P2 | D152: Goregaon West | E152: Concourse | F152: Paid | G152: 15 | H152: Lift Wall | I152: 0.876 | J152: 3 | L152: 2.628 | M152: 1 | N152: 2.628
A153: 151 | B153: 2A | C153: P2 | D153: Goregaon West | E153: Concourse | F153: Paid | G153: 15 | H153: Lift Wall | I153: 0.876 | J153: 3 | L153: 2.628 | M153: 1 | N153: 2.628
A154: 152 | B154: 2A | C154: P2 | D154: Goregaon West | E154: Concourse | F154: Paid | G154: 16 | H154: Staircases/ Escalators | L154: 12.2 | M154: 8 | N154: 97.6
A155: 153 | B155: 2A | C155: P2 | D155: Goregaon West | E155: Concourse | F155: Paid | G155: 16 | H155: Staircases/ Escalators | L155: 4.83 | M155: 4 | N155: 19.32
A156: 154 | B156: 2A | C156: P2 | D156: Goregaon West | E156: Concourse | F156: Paid | G156: 16 | H156: Staircases/ Escalators | I156: 4 | J156: 2 | L156: =I156*J156-K156 -> 8 | M156: 4 | N156: 32
A157: 155 | B157: 2A | C157: P2 | D157: Goregaon West | E157: Concourse | F157: Paid | G157: 17 | H157: Column | I157: 6.49 | J157: 3 | L157: 19.47 | M157: 1 | N157: 19.47
A158: 156 | B158: 2A | C158: P2 | D158: Goregaon West | E158: Platform | F158: NA | G158: 1 | H158: Staircases/ Escalators | I158: 2 | J158: 2 | L158: 4 | M158: 10 | N158: 40
A159: 157 | B159: 2A | C159: P2 | D159: Goregaon West | E159: Platform | F159: NA | G159: 2 | H159: Lift Wall | I159: 3.42 | J159: 3 | L159: 10.26 | M159: 1 | N159: 10.26
A160: 158 | B160: 2A | C160: P2 | D160: Goregaon West | E160: Platform | F160: NA | G160: 3 | H160: Lift Wall | I160: 3.42 | J160: 3 | L160: 10.26 | M160: 1 | N160: 10.26
A161: 159 | B161: 2A | C161: P2 | D161: Goregaon West | E161: Platform | F161: NA | G161: 4 | H161: Lift Door | I161: 1 | J161: 2 | L161: 2 | M161: 2 | N161: 4
A162: 160 | B162: 2A | C162: P2 | D162: Goregaon West | E162: Platform | F162: NA | G162: 5 | H162: Staircase Bulk Head | I162: 2 | J162: 4 | L162: 8 | M162: 8 | N162: 64
A163: 161 | B163: 2A | C163: P2 | D163: Goregaon West | E163: Platform | F163: NA | G163: 6 | H163: Parapet Walls | I163: 8.53 | J163: 0.5 | L163: 4.265 | M163: 8 | N163: 34.12
A164: 162 | B164: 2A | C164: P2 | D164: Goregaon West | E164: Platform | F164: NA | G164: 6 | H164: Parapet Walls | I164: 12.15 | J164: 0.5 | L164: 6.075 | M164: 4 | N164: 24.3
A165: 163 | B165: 2A | C165: P2 | D165: Goregaon West | E165: Platform | F165: NA | G165: 7 | H165: Platform Screen Doors | I165: 76.66 | J165: 1 | L165: 76.66 | M165: 2 | N165: 153.32
A166: 164 | B166: 2A | C166: P2 | D166: Pahadi Goregaon | E166: Ground | F166: NA | G166: 1 | H166: Lift Door | I166: 0.9 | J166: 2 | L166: 1.8 | M166: 1 | N166: 1.8
A167: 165 | B167: 2A | C167: P2 | D167: Pahadi Goregaon | E167: Ground | F167: NA | G167: 2 | H167: Staircases/ Escalators | L167: 13.5 | M167: 2 | N167: 27
A168: 166 | B168: 2A | C168: P2 | D168: Pahadi Goregaon | E168: Ground | F168: NA | G168: 3 | H168: Lift Door | I168: 0.9 | J168: 2 | L168: =I168*J168-K168 -> 1.8 | M168: 1 | N168: 1.8
A169: 167 | B169: 2A | C169: P2 | D169: Pahadi Goregaon | E169: Ground | F169: NA | G169: 4 | H169: Staircases/ Escalators | L169: 13.5 | M169: 2 | N169: 27
A170: 168 | B170: 2A | C170: P2 | D170: Pahadi Goregaon | E170: Concourse | F170: Unpaid South | G170: 1 | H170: Staircases/ Escalators | I170: 4 | J170: 2 | L170: =I170*J170-K170 -> 8 | M170: 1 | N170: 8
A171: 169 | B171: 2A | C171: P2 | D171: Pahadi Goregaon | E171: Concourse | F171: Unpaid South | G171: 2 | H171: Column | I171: 6.49 | J171: 3 | L171: 19.47 | M171: 1 | N171: 19.47
A172: 170 | B172: 2A | C172: P2 | D172: Pahadi Goregaon | E172: Concourse | F172: Unpaid South | G172: 3 | H172: AFC Gates | I172: 3 | J172: 0.98 | L172: 2.94 | M172: 11 | N172: 32.34
A173: 171 | B173: 2A | C173: P2 | D173: Pahadi Goregaon | E173: Concourse | F173: Unpaid South | G173: 4 | H173: Lift Door | I173: 0.9 | J173: 2 | L173: 1.8 | M173: 1 | N173: 1.8
A174: 172 | B174: 2A | C174: P2 | D174: Pahadi Goregaon | E174: Concourse | F174: Unpaid North | G174: 5 | H174: Wall | I174: 5.254 | J174: 3 | L174: 15.762 | M174: 1 | N174: 15.762
A175: 173 | B175: 2A | C175: P2 | D175: Pahadi Goregaon | E175: Concourse | F175: Unpaid North | G175: 5 | H175: Wall | I175: 3.006 | J175: 3 | L175: 9.018 | M175: 1 | N175: 9.018
A176: 174 | B176: 2A | C176: P2 | D176: Pahadi Goregaon | E176: Concourse | F176: Unpaid North | G176: 6 | H176: Column | I176: 6.692 | J176: 3 | L176: 20.076 | M176: 1 | N176: 20.076
A177: 175 | B177: 2A | C177: P2 | D177: Pahadi Goregaon | E177: Concourse | F177: Unpaid North | G177: 7 | H177: Staircases/ Escalators | I177: 4 | J177: 2 | L177: 8 | M177: 1 | N177: 8
A178: 176 | B178: 2A | C178: P2 | D178: Pahadi Goregaon | E178: Concourse | F178: Unpaid North | G178: 8 | H178: AFC Gates | I178: 3 | J178: 0.98 | L178: 2.94 | M178: 11 | N178: 32.34
A179: 177 | B179: 2A | C179: P2 | D179: Pahadi Goregaon | E179: Concourse | F179: Unpaid North | G179: 9 | H179: Lift Door | I179: 0.9 | J179: 2 | L179: 1.8 | M179: 1 | N179: 1.8
A180: 178 | B180: 2A | C180: P2 | D180: Pahadi Goregaon | E180: Concourse | F180: Paid | G180: 10 | H180: Column | I180: 8.702 | J180: 3 | L180: 26.106 | M180: 1 | N180: 26.106
A181: 179 | B181: 2A | C181: P2 | D181: Pahadi Goregaon | E181: Concourse | F181: Paid | G181: 11 | H181: Wall | I181: 4.789 | J181: 3 | L181: 14.367 | M181: 1 | N181: 14.367
A182: 180 | B182: 2A | C182: P2 | D182: Pahadi Goregaon | E182: Concourse | F182: Paid | G182: 11 | H182: Wall | I182: 5.757 | J182: 3 | L182: 17.271 | M182: 1 | N182: 17.271
A183: 181 | B183: 2A | C183: P2 | D183: Pahadi Goregaon | E183: Concourse | F183: Paid | G183: 11 | H183: Wall | I183: 11.64 | J183: 3 | L183: 34.92 | M183: 1 | N183: 34.92
A184: 182 | B184: 2A | C184: P2 | D184: Pahadi Goregaon | E184: Concourse | F184: Paid | G184: 11 | H184: Wall | I184: 4 | J184: 3 | L184: 12 | M184: 1 | N184: 12
A185: 183 | B185: 2A | C185: P2 | D185: Pahadi Goregaon | E185: Concourse | F185: Paid | G185: 11 | H185: Wall | I185: 4.05 | J185: 3 | L185: 12.15 | M185: 1 | N185: 12.15
A186: 184 | B186: 2A | C186: P2 | D186: Pahadi Goregaon | E186: Concourse | F186: Paid | G186: 12 | H186: Wall | I186: 16.549 | J186: 3 | K186: 2.8 | L186: 46.847 | M186: 1 | N186: 46.847
A187: 185 | B187: 2A | C187: P2 | D187: Pahadi Goregaon | E187: Concourse | F187: Paid | G187: 12 | H187: Wall | I187: 4 | J187: 3 | L187: 12 | M187: 1 | N187: 12
A188: 186 | B188: 2A | C188: P2 | D188: Pahadi Goregaon | E188: Concourse | F188: Paid | G188: 12 | H188: Wall | I188: 10.134 | J188: 3 | L188: 30.402 | M188: 1 | N188: 30.402
A189: 187 | B189: 2A | C189: P2 | D189: Pahadi Goregaon | E189: Concourse | F189: Paid | G189: 13 | H189: Lift Door | I189: 1 | J189: 2 | L189: 2 | M189: 2 | N189: 4
A190: 188 | B190: 2A | C190: P2 | D190: Pahadi Goregaon | E190: Concourse | F190: Paid | G190: 14 | H190: Lift Wall | I190: 0.876 | J190: 3 | L190: 2.628 | M190: 1 | N190: 2.628
A191: 189 | B191: 2A | C191: P2 | D191: Pahadi Goregaon | E191: Concourse | F191: Paid | G191: 14 | H191: Lift Wall | I191: 0.876 | J191: 3 | L191: 2.628 | M191: 1 | N191: 2.628
A192: 190 | B192: 2A | C192: P2 | D192: Pahadi Goregaon | E192: Concourse | F192: Paid | G192: 15 | H192: Staircases/ Escalators | L192: 12.2 | M192: 8 | N192: 97.6
A193: 191 | B193: 2A | C193: P2 | D193: Pahadi Goregaon | E193: Concourse | F193: Paid | G193: 15 | H193: Staircases/ Escalators | L193: 4.83 | M193: 4 | N193: 19.32
A194: 192 | B194: 2A | C194: P2 | D194: Pahadi Goregaon | E194: Concourse | F194: Paid | G194: 15 | H194: Staircases/ Escalators | I194: 4 | J194: 2 | L194: =I194*J194-K194 -> 8 | M194: 4 | N194: 32
A195: 193 | B195: 2A | C195: P2 | D195: Pahadi Goregaon | E195: Concourse | F195: Paid | G195: 16 | H195: Column | I195: 6.5 | J195: 3 | L195: 19.5 | M195: 2 | N195: =L195*M195 -> 39
A196: 194 | B196: 2A | C196: P2 | D196: Pahadi Goregaon | E196: Platform | F196: NA | G196: 1 | H196: Staircases/ Escalators | I196: 2 | J196: 2 | L196: 4 | M196: 10 | N196: 40
A197: 195 | B197: 2A | C197: P2 | D197: Pahadi Goregaon | E197: Platform | F197: NA | G197: 2 | H197: Lift Wall | I197: 3.42 | J197: 3 | L197: 10.26 | M197: 1 | N197: 10.26
A198: 196 | B198: 2A | C198: P2 | D198: Pahadi Goregaon | E198: Platform | F198: NA | G198: 3 | H198: Lift Wall | I198: 3.42 | J198: 3 | L198: 10.26 | M198: 1 | N198: 10.26
A199: 197 | B199: 2A | C199: P2 | D199: Pahadi Goregaon | E199: Platform | F199: NA | G199: 4 | H199: Lift Door | I199: 1 | J199: 2 | L199: 2 | M199: 2 | N199: 4
A200: 198 | B200: 2A | C200: P2 | D200: Pahadi Goregaon | E200: Platform | F200: NA | G200: 5 | H200: Staircase Bulk Head | I200: 2 | J200: 4 | L200: 8 | M200: 8 | N200: 64
... 1199 more rows
